bitfinex-derivatives/quotes_ETHF0:USTF0_20250520
["timestamp","ask_amount","ask_price","bid_price","bid_amount"]
[1747710035371,4.503,2571.2,2571.0,0.7777]
[1747710035876,0.7777,2571.1,2570.7,12.5668]
[1747710036165,5.28067,2571.2,2570.8,0.77776]
[1747710036371,5.28067,2571.2,2570.7,12.5668]
[1747710036672,4.503,2571.2,2571.1,0.77768]
[1747710037473,4.503,2571.2,2570.8,2.2737]
[1747710037777,0.77773,2571.0,2570.7,3.9856]
[1747710037977,2.1626,2570.9,2570.7,3.2078]
[1747710038171,2.1626,2570.9,2570.4,9.359]
[1747710038371,2.1626,2570.9,2570.8,0.77777]
[1747710038569,2.1626,2570.9,2570.8,0.67847]
[1747710039066,2.1626,2570.9,2570.7,0.7778]
[1747710039271,2.1626,2570.9,2570.8,0.77777]
[1747710039472,2.1626,2570.9,2570.6,3.2078]
[1747710039675,2.1626,2570.9,2570.7,0.77778]
[1747710040074,2.1626,2570.9,2570.8,0.77777]
[1747710040477,2.1626,2570.9,2570.7,0.77778]
[1747710041278,2.1626,2570.9,2570.8,0.77777]
[1747710042888,4.503,2571.2,2571.1,0.77768]
[1747710044073,4.503,2571.2,2570.9,0.77772]
[1747710044280,2.3624,2571.1,2570.8,0.77775]
[1747710044468,2.3624,2571.1,2570.9,0.77774]
[1747710044971,3.98553,2571.0,2570.6,0.77782]
[1747710045167,2.3624,2570.9,2570.7,0.33944573]
[1747710045373,2.3624,2570.9,2570.8,0.77777]
[1747710049980,2.3624,2570.9,2570.8,1.08896795]
[1747710050674,2.3624,2570.9,2570.8,0.31119795]
[1747710050878,3.14014,2570.9,2570.8,0.31119795]
[1747710051079,5.88014,2570.9,2570.8,1.08896795]
[1747710051292,5.1024,2570.9,2570.8,0.77777]
[1747710052686,5.88014,2570.9,2570.8,0.77777]
[1747710052889,0.7778,2570.8,2570.7,0.7778]
[1747710053089,2.9842,2570.8,2570.7,0.7778]
[1747710053383,2.9842,2570.8,2570.4,9.302]
[1747710053384,0.7778,2570.7,2570.6,0.77783]
[1747710053584,8.5826,2570.7,2570.6,0.77783]
[1747710053985,12.8048,2570.7,2570.3,3.2078]
[1747710054182,0.77788,2570.5,2570.4,0.77788]
[1747710054388,2.3285,2570.6,2570.2,0.33944573]
[1747710054389,3.301,2570.6,2570.2,0.33944573]
[1747710054592,2.3714,2570.4,2570.3,0.77792]
[1747710054885,3.301,2570.6,2570.5,0.77786]
[1747710055089,5.6724,2570.6,2570.5,0.77786]
[1747710055284,3.301,2570.6,2570.5,0.77786]
[1747710055884,5.6724,2570.6,2570.5,2.96506]
[1747710060589,0.9725,2570.6,2570.5,2.96506]
[1747710064186,0.9725,2570.6,2570.5,3.27628532]
[1747710065791,4.95813,2570.6,2570.5,0.31122532]
[1747710066191,7.69813,2570.6,2570.5,0.31122532]
[1747710066690,11.9203,2570.6,2570.2,0.46679013]
[1747710066899,3.98572,2570.3,2570.2,0.46679013]
[1747710067191,3.98572,2570.3,2569.7,0.78393067]
[1747710067192,0.77799,2570.1,2569.7,0.78393067]
[1747710067394,0.77802,2570.0,2569.9,0.43178503]
[1747710067586,6.28222,2570.0,2569.9,0.43178503]
[1747710067786,11.28222,2570.0,2569.9,0.43178503]
[1747710068294,13.2442,2570.0,2569.7,0.00584067]
[1747710068498,0.77808,2569.8,2569.7,0.00584067]
[1747710068894,7.99658,2569.8,2569.7,0.00584067]
[1747710069191,10.73658,2569.8,2569.7,0.00584067]
[1747710069712,0.77814,2569.6,2569.5,0.93925768]
[1747710069895,3.2078,2569.6,2568.8,2.3152]
[1747710070090,0.77824,2569.3,2569.1,0.77827]
[1747710070290,4.3455,2569.2,2569.1,0.77827]
[1747710070899,5.12377,2569.2,2569.0,0.77829]
[1747710071499,0.77829,2569.1,2568.9,0.78417067]
[1747710071700,2.3592,2569.0,2568.9,0.78417067]
[1747710072792,3.13752,2569.0,2568.9,0.00584067]
[1747710073305,3.13752,2569.0,2567.8,1.17941292]
[1747710073306,1.94588,2568.9,2567.8,1.17941292]
[1747710073606,3.2078,2568.5,2567.9,2.1426]
[1747710073798,4.4953,2568.4,2567.9,2.1426]
[1747710073987,0.77857,2568.2,2567.9,2.92122]
[1747710074194,0.77865,2568.0,2567.8,1.18525359]
[1747710074387,2.3592,2567.9,2567.8,1.18525359]
[1747710074597,2.3592,2567.9,2567.8,1.96391359]
[1747710074801,2.3592,2567.9,2567.8,1.18525359]
[1747710074998,3.13785,2567.9,2567.8,1.18525359]
[1747710075206,9.08565,2567.9,2567.8,1.18525359]
[1747710075504,9.08565,2567.9,2567.8,0.00584067]
[1747710076216,8.307,2567.9,2567.8,0.00584067]
[1747710076402,8.307,2567.9,2567.8,0.78452067]
[1747710077006,9.08565,2567.9,2567.8,0.00584067]
[1747710077307,5.567,2567.9,2567.8,0.00584067]
[1747710078002,5.567,2567.9,2567.8,0.78452067]
[1747710078203,6.34565,2567.9,2567.8,0.78452067]
[1747710078408,5.567,2567.9,2567.8,0.78452067]
[1747710078610,6.34565,2567.9,2567.8,0.00584067]
[1747710079213,9.08565,2567.9,2567.8,0.00584067]
[1747710080209,11.34565,2567.9,2567.8,0.00584067]
[1747710081311,0.77886,2567.2,2567.0,3.2078]
[1747710081606,2.3117,2567.1,2566.8,0.77897]
[1747710081814,0.77899,2566.8,2566.7,0.77901]
[1747710082013,3.2078,2566.9,2566.6,0.77903]
[1747710082317,0.77905,2566.6,2566.5,0.00584067]
[1747710082509,3.98685,2566.6,2566.5,0.00584067]
[1747710084208,1.94775,2566.5,2566.0,0.77923]
[1747710084411,3.98698,2566.2,2565.6,2.267]
[1747710084717,3.08651,2566.1,2565.6,2.267]
[1747710085128,3.08651,2566.1,2565.9,0.77925]
[1747710085425,3.08651,2566.1,2565.6,2.27284067]
[1747710085626,3.08651,2566.1,2565.9,0.77925]
[1747710086730,0.77923,2566.0,2565.9,0.77925]
[1747710086922,0.77926,2565.9,2565.8,0.77927]
[1747710087123,3.08654,2566.0,2565.8,0.77927]
[1747710087324,0.77926,2565.9,2565.8,0.77927]
[1747710087530,2.3411,2565.9,2565.6,2.27284067]
[1747710087829,0.77932,2565.7,2565.6,2.27284067]
[1747710088329,0.77932,2565.7,2565.6,0.00584067]
[1747710089824,0.7793,2565.8,2565.6,0.00584067]
[1747710090130,0.7793,2565.8,2565.7,0.77932]
[1747710090429,2.3411,2565.9,2565.6,2.98686067]
[1747710090430,0.77932,2565.7,2565.6,2.98686067]
[1747710090631,3.07792,2565.7,2565.6,2.98686067]
[1747710091226,3.07792,2565.7,2565.6,0.00584067]
[1747710093928,7.2986,2565.7,2565.1,2.2017]
[1747710094130,0.77953,2565.0,2564.9,2.1942]
[1747710094434,0.77959,2564.8,2564.7,2.1685]
[1747710094932,5.493,2564.9,2564.5,0.00584067]
[1747710095231,2.2852,2564.8,2564.6,0.77964]
[1747710095430,0.77962,2564.7,2564.6,0.77964]
[1747710095633,0.77962,2564.7,2564.5,2.95400067]
[1747710095828,0.77965,2564.6,2564.5,2.17434067]
[1747710096026,0.77965,2564.6,2564.5,0.00584067]
[1747710096229,3.98745,2564.6,2564.5,0.00584067]
[1747710096621,3.2078,2564.6,2564.5,0.78552067]
[1747710097033,0.9747,2564.8,2564.7,0.77962]
[1747710098931,4.1825,2564.8,2564.6,4.4854]
[1747710099131,4.1825,2564.8,2564.5,0.00584067]
[1747710099337,0.77965,2564.6,2564.5,2.29614067]
[1747710099640,0.77965,2564.6,2564.5,3.07582067]
[1747710100035,4.96212,2564.8,2564.5,2.29614067]
[1747710100237,4.1825,2564.8,2564.6,0.77963]
[1747710100437,0.77965,2564.7,2564.5,2.29614067]
[1747710100638,2.2686,2564.7,2564.6,0.77965]
[1747710100833,2.2686,2564.7,2564.5,2.29614067]
[1747710101036,0.77965,2564.6,2564.5,0.00584067]
[1747710101839,3.04824,2564.7,2564.6,0.77965]
[1747710102035,0.77965,2564.6,2564.5,0.00584067]
[1747710102236,0.77965,2564.6,2564.5,0.78552067]
[1747710102435,0.77965,2564.6,2564.5,0.00584067]
[1747710104138,5.77965,2564.6,2564.5,0.00584067]
[1747710104631,5.77965,2564.6,2563.5,1.94991]
[1747710104632,1.94949,2564.2,2563.3,0.31202374]
[1747710104835,3.98772,2563.8,2563.6,2.87634]
[1747710105032,3.98772,2563.8,2563.7,2.0964]
[1747710105234,3.2078,2563.8,2563.7,2.87633]
[1747710105534,3.19777447,2563.8,2563.7,2.87633]
[1747710105843,3.97767447,2563.8,2563.7,2.0964]
[1747710107440,3.97767447,2563.8,2563.5,0.00389376]
[1747710107441,0.77996,2563.6,2563.5,0.00389376]
[1747710109945,10.04696,2563.6,2563.5,0.00389376]
[1747710110437,10.04696,2563.6,2563.5,0.78388376]
[1747710110633,9.267,2563.6,2563.5,0.78388376]
[1747710110834,0.77994,2563.7,2563.5,0.78387376]
[1747710111036,0.77994,2563.7,2563.6,2.1232]
[1747710111435,2.90294,2563.7,2563.6,2.1232]
[1747710112144,3.19777447,2563.8,2563.7,0.77993]
[1747710112336,0.77993,2563.7,2563.6,2.90314]
[1747710112840,4.95279447,2563.8,2563.7,0.77993]
[1747710113043,4.17287447,2563.8,2563.7,0.77993]
[1747710113929,4.95277447,2563.8,2563.7,0.77993]
[1747710114136,1.755,2563.8,2563.7,0.77993]
[1747710114439,0.77993,2563.7,2563.6,4.3994]
[1747710114640,0.77996,2563.6,2563.5,0.00389376]
[1747710115443,13.3959,2563.8,2563.6,0.77996]
[1747710115647,0.77996,2563.6,2563.5,0.78386376]
[1747710116340,0.77996,2563.6,2563.5,0.00389376]
[1747710117143,2.97546,2563.6,2563.5,0.00389376]
[1747710119742,2.97546,2563.6,2563.5,6.762e-05]
[1747710120045,12.18946,2563.6,2563.5,6.762e-05]
[1747710120243,12.18946,2563.6,2563.5,0.78005762]
[1747710120443,12.18946,2563.6,2563.5,6.762e-05]
[1747710120643,2.97546,2563.6,2563.5,6.762e-05]
[1747710120844,12.18946,2563.6,2563.5,6.762e-05]
[1747710122755,17.18946,2563.6,2563.5,6.762e-05]
[1747710122949,0.78032,2562.4,2562.2,0.63962556]
[1747710123356,5.4497,2562.6,2562.2,0.63962556]
[1747710123546,12.4228,2562.6,2562.4,0.78031]
[1747710123853,3.2078,2562.6,2562.5,0.78029]
[1747710125154,0.78607263,2562.8,2562.6,0.78024]
[1747710125453,0.00585263,2562.8,2562.7,0.78023]
[1747710126650,5.52792805,2563.6,2562.8,1.95051]
[1747710126849,0.78,2563.5,2562.9,4.3707]
[1747710127148,5.52792805,2563.6,2562.9,4.3707]
[1747710127353,0.78013,2563.1,2562.9,5.15087]
[1747710127554,0.78011,2563.2,2562.9,4.3707]
[1747710127754,3.99370263,2563.3,2563.1,0.78009]
[1747710127963,3.99370263,2563.3,2563.2,2.1563]
[1747710128257,3.21365263,2563.3,2563.2,2.93638]
[1747710128453,0.78014,2563.0,2562.9,2.2144]
[1747710128652,0.78017,2562.9,2562.8,2.1563]
[1747710128846,0.7802,2562.8,2562.7,0.00585263]
[1747710129261,5.7802,2562.8,2562.7,0.00585263]
[1747710129463,7.8986,2562.8,2562.7,0.00585263]
[1747710130361,0.78029,2562.5,2562.4,2.7e-07]
[1747710130560,3.2078,2562.0,2560.3,5.51622016]
[1747710130854,0.78072,2561.1,2561.0,0.84715466]
[1747710131058,13.20452,2561.1,2561.0,0.84715466]
[1747710131246,15.94452,2561.1,2561.0,0.84715466]
[1747710131452,2.74,2561.1,2561.0,3.2067879]
[1747710131648,2.10037444,2561.1,2561.0,7.56716234]
[1747710131859,2.10037444,2561.1,2561.0,10.77496234]
[1747710132359,0.00585263,2561.3,2561.2,0.78069]
[1747710132563,0.00585263,2561.3,2561.2,1.71994768]
[1747710133059,0.00585263,2561.3,2561.2,5.92164768]
[1747710133552,0.00585263,2561.3,2561.2,10.92164768]
[1747710134648,0.00585263,2561.3,2561.2,5.92164768]
[1747710135854,0.00585263,2561.3,2561.2,5.14095768]
[1747710136160,0.00585263,2561.3,2561.2,5.92164768]
[1747710136863,0.00585263,2561.3,2561.2,5.14095768]
[1747710137062,0.00585263,2561.3,2561.2,5.92164768]
[1747710137360,0.00585263,2561.3,2561.2,5.14095768]
[1747710137556,0.78651263,2561.3,2561.2,5.14095768]
[1747710137857,0.00585263,2561.3,2561.2,5.14095768]
[1747710138061,0.00585263,2561.3,2561.2,5.92164768]
[1747710138264,0.00585263,2561.3,2561.2,3.03555768]
[1747710138558,0.78651263,2561.3,2561.2,3.03555768]
[1747710138953,0.00585263,2561.3,2561.2,3.03555768]
[1747710139156,0.00585263,2561.3,2561.2,0.93925768]
[1747710139462,0.78651263,2561.3,2561.2,0.93925768]
[1747710139962,2.93241263,2561.3,2561.2,0.93925768]
[1747710140163,0.00585263,2561.3,2561.2,1.71994768]
[1747710142368,0.78651263,2561.3,2561.2,0.93925768]
[1747710142560,3.02751263,2561.3,2561.2,0.93925768]
[1747710143059,2.24685263,2561.3,2561.2,1.71994768]
[1747710143258,3.02751263,2561.3,2561.2,1.71994768]
[1747710143466,0.00585263,2561.3,2561.2,1.71994768]
[1747710146061,2.63e-06,2561.3,2561.2,1.71994768]
[1747710146265,0.03674495,2561.4,2561.3,0.78066]
[1747710146565,0.78049,2561.9,2561.7,0.78053]
[1747710147065,3.98829,2561.9,2561.3,8.39221]
[1747710147265,3.99414263,2561.9,2561.3,8.39221]
[1747710147457,3.21365263,2561.9,2561.5,1.9515]
[1747710147665,0.00585263,2561.9,2561.8,3.98831]
[1747710148261,0.00585263,2561.9,2561.8,8.98831]
[1747710148754,3.85015469,2562.4,2562.3,0.78035]
[1747710148957,1.54782236,2562.6,2562.5,0.78029]
[1747710149163,1.54782236,2562.6,2562.1,2.1329]
[1747710149366,2.32809236,2562.6,2562.4,0.78031]
[1747710149560,2.082,2562.5,2562.4,0.78031]
[1747710151468,0.00585263,2562.7,2562.6,0.78026]
[1747710152162,0.00585263,2562.7,2562.6,5.00026]
[1747710152360,0.00585263,2562.7,2562.6,10.00026]
[1747710152560,0.8462,2562.8,2562.7,0.78023]
[1747710152868,0.96818837,2563.5,2563.4,0.78002]
[1747710154172,0.96818837,2563.5,2563.3,0.78004]
[1747710154473,2.1675,2563.4,2563.3,0.78004]
[1747710154770,2.1675,2563.4,2563.3,0.78005]
[1747710155566,0.96818837,2563.5,2563.3,0.78003]
[1747710155871,0.96818837,2563.5,2563.2,2.1336]
[1747710156070,0.96818837,2563.5,2563.4,0.78002]
[1747710156470,2.1675,2563.6,2563.5,0.77999]
[1747710156774,2.94747,2563.6,2563.4,0.78002]
[1747710157167,2.1675,2563.6,2563.5,0.77999]
[1747710158272,2.94746,2563.6,2563.4,0.78]
[1747710158571,2.1675,2563.6,2563.2,2.1336]
[1747710158872,2.1675,2563.6,2563.0,0.78014]
[1747710158873,0.7801,2563.2,2563.0,0.78014]
[1747710159074,2.0628,2563.1,2563.0,2.82664]
[1747710159472,3.2078,2563.4,2563.2,0.78005]
[1747710159473,3.98783,2563.4,2563.2,0.78005]
[1747710159667,2.0628,2563.3,2563.0,2.0465]
[1747710159868,3.21365263,2563.7,2563.0,2.0465]
[1747710160062,2.0628,2563.4,2563.3,0.78003]
[1747710160664,3.21365263,2563.7,2563.5,0.77999]
[1747710160964,0.77996,2563.6,2563.5,0.77999]
[1747710161164,0.78006,2563.3,2563.1,3.2078]
[1747710161371,3.2078,2563.4,2562.8,2.029]
[1747710161571,2.0113,2563.3,2562.8,2.029]
[1747710162072,2.1395,2563.2,2563.1,0.78011]
[1747710162278,2.1395,2563.2,2562.9,2.2041]
[1747710162776,2.1395,2563.2,2562.9,0.78017]
[1747710163077,0.78014,2563.0,2562.9,0.78015]
[1747710163273,0.78014,2563.0,2562.6,2.2041]
[1747710163274,0.78013,2563.1,2563.0,0.78014]
[1747710163976,4.1247,2563.3,2563.1,0.78008]
[1747710163977,0.78009,2563.2,2563.1,0.78008]
[1747710164169,4.1247,2563.3,2562.8,2.1311]
[1747710164371,3.2078,2563.1,2562.5,3.2078]
[1747710164572,0.78019,2562.9,2562.8,0.78019]
[1747710165179,0.78019,2562.9,2562.8,0.7802]
[1747710165476,0.7802,2562.8,2562.7,0.78022]
[1747710165677,0.78026,2562.6,2562.5,3.2078]
[1747710165875,0.78032,2562.4,2562.3,2.1311]
[1747710166079,0.78031,2562.5,2562.3,2.91143]
[1747710166373,2.1253,2562.7,2562.2,3.21365263]
[1747710166573,0.78035,2562.3,2562.2,3.21365263]
[1747710166772,0.78035,2562.3,2562.2,0.00585263]
[1747710167878,0.78034,2562.4,2562.2,0.00585263]
[1747710168177,1.9973,2562.6,2562.5,0.78029]
[1747710168581,5.2051,2562.6,2562.5,0.78029]
[1747710169081,1.54782236,2563.0,2562.5,5.0]
[1747710169273,3.2078,2562.9,2562.5,3.2078]
[1747710169473,3.2078,2562.9,2562.3,2.1604]
[1747710169773,0.78025,2562.7,2562.5,0.78028]
[1747710170079,0.78026,2562.6,2562.4,0.78031]
[1747710170276,5.98898,2562.9,2562.8,0.7802]
[1747710170475,2.001,2562.9,2562.8,0.7802]
[1747710171679,2.96961,2563.1,2563.0,0.78014]
[1747710171880,2.96961,2563.1,2562.6,1.95066]
[1747710172182,2.96961,2563.1,2562.9,0.78014]
[1747710173082,2.96961,2563.1,2562.9,0.78015]
[1747710173277,2.1895,2563.1,2562.7,2.1604]
[1747710173987,0.78015,2563.0,2562.9,0.78016]
[1747710174484,2.1895,2563.1,2562.8,0.78019]
[1747710174680,2.96963,2563.1,2562.9,0.78015]
[1747710174881,0.78014,2563.0,2562.7,2.1604]
[1747710175090,0.78014,2563.0,2562.8,0.78018]
[1747710175388,2.1895,2563.1,2562.9,0.78017]
[1747710175592,2.96963,2563.1,2562.9,0.78017]
[1747710175785,2.1895,2563.1,2563.0,0.78014]
[1747710176481,2.78105,2563.3,2563.2,0.78008]
[1747710176679,4.1238,2563.3,2563.2,0.78008]
[1747710178687,0.78009,2563.2,2563.1,0.78009]
[1747710178887,2.92059,2563.2,2563.1,0.78009]
[1747710179194,2.1405,2563.2,2563.1,0.78009]
[1747710179796,2.001,2563.3,2563.2,0.78008]
[1747710180498,4.92155,2563.3,2563.2,0.78008]
[1747710181296,4.1415,2563.3,2563.2,0.78008]
[1747710181500,1.54782236,2563.4,2563.3,0.78005]
[1747710182297,5.64462236,2563.5,2563.4,0.78002]
[1747710182900,3.47782236,2563.5,2563.4,0.78002]
[1747710184700,5.22835263,2563.7,2563.6,0.77996]
[1747710186301,7.22655263,2563.7,2563.6,0.77996]
[1747710188104,7.22655263,2563.7,2563.4,1.9573]
[1747710188403,8.00648263,2563.7,2563.6,0.77996]
[1747710189503,0.77998,2563.6,2563.5,0.77997]
[1747710189801,2.80408,2563.6,2563.5,0.77997]
[1747710190001,0.78,2563.5,2563.4,0.78]
[1747710190202,2.8041,2563.5,2563.4,0.78]
[1747710192707,2.0241,2563.5,2563.4,0.78]
[1747710193006,2.02055263,2563.7,2563.6,0.77996]
[1747710193409,0.78003,2563.4,2563.1,5.3216]
[1747710193603,5.22835263,2563.7,2563.5,0.77998]
[1747710193904,6.00830263,2563.7,2563.6,0.77996]
[1747710194203,0.78014,2563.0,2562.9,0.31352506]
[1747710194709,3.98794,2563.0,2562.9,0.31352506]
[1747710195409,0.78014,2563.0,2562.9,0.31352506]
[1747710195607,0.78014,2563.0,2562.8,0.78019]
[1747710195608,0.78017,2562.9,2562.8,0.78019]
[1747710195808,0.7802,2562.8,2562.7,0.78022]
[1747710196205,2.32012805,2563.0,2562.4,1.9895]
[1747710196403,0.78017,2562.9,2562.8,0.78019]
[1747710196703,2.32012805,2563.0,2562.4,3.94026]
[1747710197004,5.52792805,2563.0,2562.6,0.78025]
[1747710197206,0.78023,2562.7,2562.6,0.78024]
[1747710197406,0.78027,2562.6,2562.5,0.78028]
[1747710197604,7.45462805,2563.0,2562.5,0.78027]
[1747710197807,0.78026,2562.7,2562.5,2.89637]
[1747710198010,7.45462805,2563.0,2562.5,2.89637]
[1747710198209,0.78026,2562.6,2562.5,2.89637]
[1747710198411,1.55431491,2562.9,2562.5,2.89637]
[1747710198614,3.50474491,2562.9,2562.5,2.1161]
[1747710198799,0.78032,2562.4,2562.3,0.78035]
[1747710199204,3.2078,2562.7,2562.6,0.78026]
[1747710199810,0.7802,2562.8,2562.6,0.78026]
[1747710200012,0.78023,2562.7,2562.6,0.78026]
[1747710200213,1.6787062,2562.9,2562.5,0.78027]
[1747710200408,1.6787062,2562.9,2562.3,2.1161]
[1747710200615,2.4588962,2562.9,2562.8,0.7802]
[1747710200813,0.90458129,2562.9,2562.8,0.7802]
[1747710201012,0.12439129,2562.9,2562.8,5.7802]
[1747710201312,1.19694327,2563.0,2562.9,0.78017]
[1747710201513,1.19694327,2563.0,2562.9,9.91617]
[1747710201817,1.19694327,2563.0,2562.9,11.85167]
[1747710202404,0.96818837,2563.0,2562.9,11.85167]
[1747710202912,0.96818837,2563.0,2562.9,2.71567]
[1747710203414,3.2078,2563.4,2563.1,0.7801]
[1747710203415,0.78006,2563.3,2563.1,0.7801]
[1747710203610,0.78005,2563.3,2563.1,0.7801]
[1747710204206,3.98784,2563.4,2562.9,1.9355]
[1747710204410,3.10068837,2563.5,2562.9,1.9355]
[1747710204612,3.10068837,2563.5,2563.4,0.78002]
[1747710205315,5.08228837,2563.5,2563.4,0.78002]
[1747710205514,0.96818837,2563.5,2563.4,0.78002]
[1747710209016,0.78003,2563.4,2563.1,1.9427]
[1747710209213,0.96818837,2563.5,2563.4,0.78002]
[1747710209616,1.74817837,2563.5,2563.4,0.78002]
[1747710209912,0.96818837,2563.5,2563.4,0.78002]
[1747710211921,4.921241,2563.7,2563.6,0.77996]
[1747710212516,4.921241,2563.7,2563.2,2.0101]
[1747710212719,3.2078,2563.5,2563.0,5.1889]
[1747710212920,2.0811,2563.4,2563.0,1.9811]
[1747710213114,2.096,2563.3,2563.0,0.78013]
[1747710213315,2.86119,2563.2,2563.1,0.78011]
[1747710213520,2.0811,2563.2,2563.1,0.78011]
[1747710215920,0.96818837,2563.4,2563.3,0.78005]
[1747710217026,0.96818837,2563.4,2563.2,0.78006]
[1747710217216,0.78008,2563.2,2563.1,0.78009]
[1747710218022,2.86138,2563.2,2563.1,0.78009]
[1747710219227,0.78014,2563.0,2562.9,5.11115]
[1747710219418,2.0813,2563.2,2563.1,0.78011]
[1747710219622,0.78003,2563.4,2563.3,0.78005]
[1747710220319,2.68623,2563.4,2563.3,0.78005]
[1747710221026,1.9062,2563.4,2563.3,0.78005]
[1747710221622,2.0813,2563.5,2563.4,0.78002]
[1747710222729,1.29447888,2563.6,2563.5,0.77999]
[1747710223230,1.30033151,2563.7,2563.6,0.77996]
[1747710224321,0.17160151,2563.7,2563.6,11.40276]
[1747710224527,2.70104093,2563.9,2563.8,0.7799]
[1747710224733,0.55264093,2563.9,2563.8,9.8819]
[1747710224922,0.55264093,2563.9,2563.8,14.8819]
[1747710225120,1.2081627,2564.0,2563.9,0.77987]
[1747710225333,1.2081627,2564.0,2563.9,6.00677]
[1747710225534,1.2081627,2564.0,2563.9,11.00677]
[1747710226133,1.2081627,2564.0,2563.9,11.31876328]
[1747710227126,2.7e-06,2564.0,2563.9,11.60684422]
[1747710228031,2.7e-06,2564.0,2563.9,12.31594563]
[1747710228332,0.00585263,2564.2,2564.1,0.7798]
[1747710228530,0.00585263,2564.2,2564.1,3.1948]
[1747710228726,0.00585263,2564.2,2564.1,8.1948]
[1747710229133,0.00585263,2564.2,2564.1,8.50679328]
[1747710230221,2.63e-06,2564.2,2564.1,8.50679328]
[1747710231134,2.63e-06,2564.2,2564.1,8.81665782]
[1747710233141,2.63e-06,2564.2,2564.1,8.50679328]
[1747710233635,2.63e-06,2564.2,2564.1,10.52589328]
[1747710234141,2.63e-06,2564.2,2564.1,5.52589328]
[1747710234741,1.98070263,2564.2,2564.1,5.52589328]
[1747710235636,1.98070263,2564.2,2564.1,5.2139]
[1747710236236,1.98070263,2564.2,2564.1,3.1948]
[1747710236437,3.97890263,2564.2,2564.1,3.1948]
[1747710236637,4.75867263,2564.2,2564.1,0.7798]
[1747710236839,3.97890263,2564.2,2564.1,0.7798]
[1747710237736,4.75867263,2564.2,2564.1,0.7798]
[1747710237936,3.97890263,2564.2,2564.1,0.7798]
[1747710238937,4.75869263,2564.2,2564.0,0.77981]
[1747710239241,5.92837263,2564.2,2563.7,0.00585263]
[1747710239439,0.7799,2563.8,2563.7,0.00585263]
[1747710240728,5.1259,2564.0,2563.7,0.00585263]
[1747710240928,5.90575,2564.0,2563.9,0.77987]
[1747710241338,5.1259,2564.0,2563.9,0.77987]
[1747710241640,1.99820263,2564.2,2563.7,0.00585263]
[1747710241641,1.99820263,2564.2,2564.1,0.7798]
[1747710243037,2.63e-06,2564.2,2564.1,0.7798]
[1747710243241,2.63e-06,2564.2,2564.1,2.6909]
[1747710244141,2.63e-06,2564.2,2564.1,3.00287244]
[1747710244640,2.63e-06,2564.2,2564.1,10.41787244]
[1747710245645,0.1264,2564.7,2564.6,0.77965]
[1747710245836,0.1264,2564.7,2564.6,13.06445]
[1747710246843,0.1264,2564.7,2564.6,3.98745]
[1747710247437,2.1374,2564.7,2564.6,3.98745]
[1747710248337,0.1264,2564.7,2564.6,3.98745]
[1747710248537,0.90602,2564.7,2564.6,3.2078]
[1747710248741,0.1264,2564.7,2564.2,3.51766454]
[1747710248931,1.8487,2564.6,2564.2,5.47556454]
[1747710249137,5.0565,2564.6,2564.2,0.30986454]
[1747710249638,0.77974,2564.3,2564.2,0.30986454]
[1747710249839,0.77974,2564.3,2564.1,0.77978]
[1747710250044,3.7933,2564.2,2564.1,0.77978]
[1747710250641,4.57308,2564.2,2564.0,0.77982]
[1747710251350,0.77981,2564.1,2563.9,0.77984]
[1747710251544,1.9221,2564.0,2563.9,0.77984]
[1747710251739,1.9221,2564.0,2563.7,0.31571717]
[1747710251939,1.9221,2564.0,2563.9,0.77987]
[1747710252747,2.70194,2564.0,2563.9,0.31200504]
[1747710254449,1.9221,2564.0,2563.9,0.31200504]
[1747710254743,2.70194,2564.0,2563.8,0.77988]
[1747710255446,1.9221,2564.0,2563.9,0.77987]
[1747710256748,2.32267262,2564.5,2564.4,0.77971]
[1747710258253,1.883,2564.6,2564.5,0.77968]
[1747710258552,1.883,2564.6,2564.5,5.99538]
[1747710259252,1.883,2564.6,2564.5,6.30731152]
[1747710260249,2.1538,2564.7,2564.6,0.77965]
[1747710260648,4.0498,2564.7,2564.6,0.77965]
[1747710262050,4.0498,2564.7,2564.5,3.51973152]
[1747710262351,4.82943,2564.7,2564.5,4.29939152]
[1747710262551,0.1264,2564.7,2564.6,0.77965]
[1747710262754,0.97461113,2564.8,2564.7,0.77962]
[1747710262945,1.0158349,2565.1,2564.7,11.463]
[1747710263151,0.97063625,2565.4,2565.2,0.77947]
[1747710263346,0.97063625,2565.4,2565.2,12.24147]
[1747710263555,0.97063625,2565.4,2565.2,17.24147]
[1747710263848,0.97063625,2565.4,2565.3,0.77944]
[1747710264049,3.74835228,2565.8,2565.3,9.61539786]
[1747710264255,2.68103064,2565.8,2565.7,3.98712]
[1747710264445,2.18103064,2565.8,2565.7,13.03412]
[1747710264647,2.18103064,2565.8,2565.7,18.03412]
[1747710265455,1.61884833,2565.9,2565.8,0.77929]
[1747710265656,0.51388833,2565.9,2565.8,2.63739]
[1747710265854,1.91448823,2566.6,2566.5,0.77908]
[1747710266152,0.92667823,2566.6,2566.5,0.77908]
[1747710266356,8.23e-06,2566.6,2566.5,5.77908]
[1747710266657,8.23e-06,2566.6,2566.5,10.09651152]
[1747710267452,1.35879041,2566.9,2566.8,0.77898]
[1747710267651,1.35879041,2566.9,2566.8,18.03178]
[1747710268850,1.35879041,2566.9,2566.8,18.34371152]
[1747710269050,4.1e-07,2566.9,2566.8,18.34371152]
[1747710269257,2.017,2567.7,2566.8,17.56473152]
[1747710269559,2.017,2567.7,2567.4,0.77879]
[1747710269762,1.8857,2567.6,2567.5,0.77877]
[1747710270155,6.8857,2567.6,2567.0,3.2078]
[1747710270366,3.2078,2567.3,2566.8,0.31193152]
[1747710270554,0.77892,2567.0,2566.7,0.77901]
[1747710270756,1.8857,2566.9,2566.6,4.30119319]
[1747710270955,3.7883,2566.9,2566.6,4.30119319]
[1747710271459,3.7883,2566.9,2566.6,3.52215319]
[1747710271664,0.77902,2566.7,2566.6,0.31435319]
[1747710272165,7.66472,2566.7,2566.6,0.00585263]
[1747710274161,6.8857,2566.7,2566.2,0.77915]